[Event "Late-Titled-Tuesday-Blitz-October-03-2023"]
[Site "Chess.com"]
[Date "2023.10.03"]
[Round "10"]
[White "Arteler"]
[Black "Leebit02"]
[Result "0-1"]
[WhiteElo "2608"]
[BlackElo "2526"]
[TimeControl "180+1"]
[EndTime "15:51:54 PDT"]
[Termination "Leebit02 won by resignation"]

1. e4 {[%clk 0:02:47.6]} 1... c5 {[%clk 0:02:59.5]} 2. Nf3 {[%clk 0:02:47.1]}
2... e6 {[%clk 0:02:59.8]} 3. c3 {[%clk 0:02:46.6]} 3... d5 {[%clk 0:02:55.2]}
4. e5 {[%clk 0:02:44.9]} 4... c4 {[%clk 0:02:50.5]} 5. b3 {[%clk 0:02:37.1]}
5... cxb3 {[%clk 0:02:12.1]} 6. axb3 {[%clk 0:02:37.4]} 6... Nc6 {[%clk
0:02:11.6]} 7. d4 {[%clk 0:02:37.4]} 7... Nge7 {[%clk 0:02:08.6]} 8. Bd3 {[%clk
0:02:36]} 8... Ng6 {[%clk 0:01:59.3]} 9. h4 {[%clk 0:02:32]} 9... Be7 {[%clk
0:01:53.8]} 10. g3 {[%clk 0:02:22.5]} 10... O-O {[%clk 0:01:49.9]} 11. h5 {[%clk
0:02:18.3]} 11... Nh8 {[%clk 0:01:47.3]} 12. Qc2 {[%clk 0:02:08.9]} 12... g6
{[%clk 0:01:47.4]} 13. Bh6 {[%clk 0:02:08.2]} 13... Re8 {[%clk 0:01:47.5]} 14.
Nbd2 {[%clk 0:01:59.3]} 14... Bd7 {[%clk 0:01:32.6]} 15. Nf1 {[%clk 0:01:49.8]}
15... Rc8 {[%clk 0:01:32]} 16. Qd2 {[%clk 0:01:49.9]} 16... f6 {[%clk
0:01:13.4]} 17. exf6 {[%clk 0:01:40.7]} 17... Bxf6 {[%clk 0:01:13.7]} 18. Ne3
{[%clk 0:01:41.4]} 18... e5 {[%clk 0:01:09.5]} 19. dxe5 {[%clk 0:01:27]} 19...
Nxe5 {[%clk 0:01:08]} 20. Nxe5 {[%clk 0:01:27.1]} 20... Bxe5 {[%clk 0:01:05.6]}
21. Rc1 {[%clk 0:01:25.8]} 21... d4 {[%clk 0:00:50.8]} 22. cxd4 {[%clk
0:01:24.8]} 22... Rxc1+ {[%clk 0:00:47.5]} 23. Qxc1 {[%clk 0:01:23.4]} 23...
Bxd4 {[%clk 0:00:48]} 24. O-O {[%clk 0:01:12.8]} 24... Be6 {[%clk 0:00:43.9]}
25. Rd1 {[%clk 0:01:05]} 25... Qf6 {[%clk 0:00:38.5]} 26. Bc4 {[%clk 0:00:57.6]}
26... Bb6 {[%clk 0:00:16.2]} 27. Bf4 {[%clk 0:00:42.3]} 27... Nf7 {[%clk
0:00:15.7]} 28. Nd5 {[%clk 0:00:38]} 28... Bxd5 {[%clk 0:00:08.2]} 29. Bxd5
{[%clk 0:00:38.9]} 29... g5 {[%clk 0:00:07.8]} 30. Be3 {[%clk 0:00:23.3]} 30...
Bxe3 {[%clk 0:00:07]} 31. fxe3 {[%clk 0:00:24.2]} 31... Qe5 {[%clk 0:00:05.7]}
32. Kg2 {[%clk 0:00:21.7]} 32... Kg7 {[%clk 0:00:05.5]} 33. e4 {[%clk
0:00:13.6]} 33... Re7 {[%clk 0:00:02.3]} 34. Rf1 {[%clk 0:00:12.9]} 34... Nd6
{[%clk 0:00:02.6]} 35. Qc5 {[%clk 0:00:10.8]} 35... Nxe4 {[%clk 0:00:01.9]} 36.
Rf3 {[%clk 0:00:05.8]} 36... Nxc5 {[%clk 0:00:01.9]} 37. Bc4 {[%clk 0:00:04.4]}
37... Qe4 {[%clk 0:00:02.3]} 38. Kf2 {[%clk 0:00:04.2]} 38... g4 {[%clk
0:00:02.9]} 39. Rf4 {[%clk 0:00:04.3]} 39... Qc2+ {[%clk 0:00:03.1]} 40. Kg1
{[%clk 0:00:03.7]} 40... Qc1+ {[%clk 0:00:03.4]} 41. Rf1 {[%clk 0:00:04.6]}
41... Qe3+ {[%clk 0:00:03.6]} 42. Kg2 {[%clk 0:00:04.6]} 42... Qd2+ {[%clk
0:00:03.1]} 43. Rf2 {[%clk 0:00:05.2]} 43... Qe3 {[%clk 0:00:03.3]} 44. Rf4
{[%clk 0:00:05.8]} 44... Ne4 {[%clk 0:00:03.6]} 45. Rxg4+ {[%clk 0:00:05.9]}
45... Kh6 {[%clk 0:00:04.3]} 46. Kh3 {[%clk 0:00:05.2]} 46... Nf2+ {[%clk
0:00:04.3]} 47. Kh4 {[%clk 0:00:05.9]} 47... Nxg4 {[%clk 0:00:04.9]} 48. Kxg4
{[%clk 0:00:06.8]} 48... Qg5+ {[%clk 0:00:05.4]} 0-1

[Event "Late-Titled-Tuesday-Blitz-October-03-2023"]
[Site "Chess.com"]
[Date "2023.10.03"]
[Round "10"]
[White "dorpato"]
[Black "Chempiblinka"]
[Result "1/2-1/2"]
[WhiteElo "2069"]
[BlackElo "2285"]
[TimeControl "180+1"]
[EndTime "15:52:03 PDT"]
[Termination "Game drawn by stalemate"]

1. e4 {[%clk 0:02:58]} 1... c5 {[%clk 0:02:59.5]} 2. Nc3 {[%clk 0:02:58]} 2...
Nc6 {[%clk 0:02:59.2]} 3. g3 {[%clk 0:02:58.3]} 3... g6 {[%clk 0:02:59.6]} 4.
Bg2 {[%clk 0:02:58.6]} 4... Bg7 {[%clk 0:03:00.1]} 5. d3 {[%clk 0:02:59.2]} 5...
e6 {[%clk 0:03:01]} 6. Be3 {[%clk 0:02:59.7]} 6... d6 {[%clk 0:03:00.8]} 7. Qd2
{[%clk 0:02:59.8]} 7... Nge7 {[%clk 0:03:00.1]} 8. Bh6 {[%clk 0:02:59.4]} 8...
Bf6 {[%clk 0:02:49.7]} 9. h4 {[%clk 0:02:51.1]} 9... Nd4 {[%clk 0:02:48.7]} 10.
Nf3 {[%clk 0:02:42.8]} 10... Nec6 {[%clk 0:02:41.6]} 11. O-O {[%clk 0:02:34]}
11... Nxf3+ {[%clk 0:02:35.3]} 12. Bxf3 {[%clk 0:02:31.7]} 12... Nd4 {[%clk
0:02:36.2]} 13. Bg2 {[%clk 0:02:30.3]} 13... Bxh4 {[%clk 0:02:28.2]} 14. gxh4
{[%clk 0:02:18.7]} 14... Qxh4 {[%clk 0:02:29.1]} 15. Qg5 {[%clk 0:02:17.4]}
15... Qxg5 {[%clk 0:02:11.9]} 16. Bxg5 {[%clk 0:02:18.3]} 16... e5 {[%clk
0:02:06.2]} 17. Nd5 {[%clk 0:02:03]} 17... Ne6 {[%clk 0:01:57.3]} 18. Bf6 {[%clk
0:02:01.7]} 18... Rg8 {[%clk 0:01:55.1]} 19. Bh3 {[%clk 0:01:57.1]} 19... Kd7
{[%clk 0:01:52.8]} 20. f4 {[%clk 0:01:37.8]} 20... exf4 {[%clk 0:01:47.9]} 21.
Nxf4 {[%clk 0:01:36.3]} 21... b5 {[%clk 0:01:45.3]} 22. c3 {[%clk 0:01:29.4]}
22... Bb7 {[%clk 0:01:45.4]} 23. d4 {[%clk 0:01:23.7]} 23... g5 {[%clk
0:01:36.1]} 24. Nxe6 {[%clk 0:01:16.6]} 24... fxe6 {[%clk 0:01:36.2]} 25. d5
{[%clk 0:01:16.2]} 25... g4 {[%clk 0:01:33.3]} 26. Bg2 {[%clk 0:01:08.2]} 26...
e5 {[%clk 0:01:27.6]} 27. Bh4 {[%clk 0:00:43.1]} 27... Raf8 {[%clk 0:01:25.4]}
28. Rxf8 {[%clk 0:00:42.7]} 28... Rxf8 {[%clk 0:01:26.3]} 29. Rf1 {[%clk
0:00:43.1]} 29... Rf4 {[%clk 0:01:21.1]} 30. Bg5 {[%clk 0:00:34]} 30... Rxf1+
{[%clk 0:01:18.9]} 31. Bxf1 {[%clk 0:00:31.2]} 31... a6 {[%clk 0:01:19.2]} 32.
Kg2 {[%clk 0:00:30.9]} 32... Ke8 {[%clk 0:01:18.6]} 33. Kg3 {[%clk 0:00:31.2]}
33... Bc8 {[%clk 0:01:19.3]} 34. Be2 {[%clk 0:00:30.3]} 34... h5 {[%clk
0:01:18.5]} 35. Kh4 {[%clk 0:00:30.5]} 35... Kf7 {[%clk 0:01:18.5]} 36. Kxh5
{[%clk 0:00:29]} 36... g3 {[%clk 0:01:18.6]} 37. Be3 {[%clk 0:00:20.5]} 37...
Bh3 {[%clk 0:01:09.4]} 38. Kh4 {[%clk 0:00:20.9]} 38... Bg2 {[%clk 0:01:07.5]}
39. Kxg3 {[%clk 0:00:20.9]} 39... Bxe4 {[%clk 0:01:08.2]} 40. c4 {[%clk
0:00:21.3]} 40... b4 {[%clk 0:01:07.4]} 41. a3 {[%clk 0:00:21]} 41... a5 {[%clk
0:01:06.8]} 42. axb4 {[%clk 0:00:20.2]} 42... cxb4 {[%clk 0:01:04.9]} 43. c5
{[%clk 0:00:18.1]} 43... dxc5 {[%clk 0:01:04.1]} 44. Bxc5 {[%clk 0:00:18.3]}
44... Bxd5 {[%clk 0:01:03]} 45. Bb6 {[%clk 0:00:17.2]} 45... a4 {[%clk
0:01:03.7]} 46. Bc5 {[%clk 0:00:17.3]} 46... a3 {[%clk 0:01:00.9]} 47. bxa3
{[%clk 0:00:16.3]} 47... b3 {[%clk 0:01:01.8]} 48. Bd3 {[%clk 0:00:16.5]} 48...
e4 {[%clk 0:01:00.1]} 49. Bb1 {[%clk 0:00:16.3]} 49... Ke6 {[%clk 0:00:59.7]}
50. Kf4 {[%clk 0:00:15.9]} 50... b2 {[%clk 0:00:58.5]} 51. Bd4 {[%clk 0:00:16]}
51... Bb3 {[%clk 0:00:53.4]} 52. Bxb2 {[%clk 0:00:15.8]} 52... Kd5 {[%clk
0:00:53.6]} 53. Bxe4+ {[%clk 0:00:15.6]} 53... Kc5 {[%clk 0:00:54.5]} 54. Ke3
{[%clk 0:00:15.7]} 54... Kb5 {[%clk 0:00:54.6]} 55. Kd2 {[%clk 0:00:15.4]} 55...
Be6 {[%clk 0:00:53.1]} 56. Kc3 {[%clk 0:00:15.5]} 56... Ka4 {[%clk 0:00:53.7]}
57. Bc6+ {[%clk 0:00:15.5]} 57... Ka5 {[%clk 0:00:54.6]} 58. Bc1 {[%clk
0:00:14.3]} 58... Bc8 {[%clk 0:00:53.8]} 59. Kb2 {[%clk 0:00:14.3]} 59... Ba6
{[%clk 0:00:53.9]} 60. Bd2+ {[%clk 0:00:14.8]} 60... Kb6 {[%clk 0:00:54.2]} 61.
Be8 {[%clk 0:00:14.2]} 61... Bb5 {[%clk 0:00:54.4]} 62. Bf7 {[%clk 0:00:13.7]}
62... Ka6 {[%clk 0:00:54.9]} 63. Kb3 {[%clk 0:00:14]} 63... Bc6 {[%clk
0:00:54.7]} 64. Kb4 {[%clk 0:00:14.3]} 64... Kb6 {[%clk 0:00:53.9]} 65. Be3+
{[%clk 0:00:14.1]} 65... Ka6 {[%clk 0:00:54.2]} 66. Bc4+ {[%clk 0:00:13.9]}
66... Kb7 {[%clk 0:00:55]} 67. Bb5 {[%clk 0:00:14]} 67... Bxb5 {[%clk
0:00:55.6]} 68. Kxb5 {[%clk 0:00:14]} 68... Ka8 {[%clk 0:00:56.5]} 69. a4 {[%clk
0:00:14.3]} 69... Kb7 {[%clk 0:00:57.4]} 70. Ka5 {[%clk 0:00:13.8]} 70... Ka8
{[%clk 0:00:58.3]} 71. Bf4 {[%clk 0:00:13.6]} 71... Kb7 {[%clk 0:00:59.2]} 72.
Kb5 {[%clk 0:00:14]} 72... Ka8 {[%clk 0:01:00.1]} 73. Kc6 {[%clk 0:00:14.7]}
73... Ka7 {[%clk 0:01:00.8]} 74. Kc7 {[%clk 0:00:14.4]} 74... Ka8 {[%clk
0:01:01.3]} 75. Kc8 {[%clk 0:00:15]} 75... Ka7 {[%clk 0:01:02.2]} 76. Bc7 {[%clk
0:00:15]} 76... Ka8 {[%clk 0:01:02.5]} 77. a5 {[%clk 0:00:15.7]} 77... Ka7
{[%clk 0:01:03.4]} 78. Bb6+ {[%clk 0:00:16.4]} 78... Ka8 {[%clk 0:01:03.2]} 79.
Kd7 {[%clk 0:00:17.3]} 79... Kb7 {[%clk 0:01:03.8]} 80. Kd6 {[%clk 0:00:17.6]}
80... Ka8 {[%clk 0:01:04.7]} 81. Kc6 {[%clk 0:00:18.2]} 81... Kb8 {[%clk
0:01:05.3]} 82. Bc7+ {[%clk 0:00:18.6]} 82... Ka8 {[%clk 0:01:06.2]} 83. Kb6
{[%clk 0:00:18.8]} 1/2-1/2

[Event "Late-Titled-Tuesday-Blitz-October-03-2023"]
[Site "Chess.com"]
[Date "2023.10.03"]
[Round "10"]
[White "JoakimVonAnd"]
[Black "victormago"]
[Result "1/2-1/2"]
[WhiteElo "2702"]
[BlackElo "2526"]
[TimeControl "180+1"]
[EndTime "15:52:06 PDT"]
[Termination "Game drawn by repetition"]

1. d4 {[%clk 0:03:00.9]} 1... Nf6 {[%clk 0:02:57.1]} 2. c4 {[%clk 0:03:01.6]}
2... c5 {[%clk 0:02:57]} 3. d5 {[%clk 0:03:01.3]} 3... e6 {[%clk 0:02:57.3]} 4.
Nc3 {[%clk 0:03:00.6]} 4... exd5 {[%clk 0:02:57.4]} 5. cxd5 {[%clk 0:03:01.5]}
5... d6 {[%clk 0:02:57.9]} 6. Nf3 {[%clk 0:03:02.3]} 6... g6 {[%clk 0:02:57.6]}
7. Bf4 {[%clk 0:03:03]} 7... a6 {[%clk 0:02:57.2]} 8. a4 {[%clk 0:03:02.9]} 8...
Bg7 {[%clk 0:02:57.3]} 9. h3 {[%clk 0:03:02]} 9... O-O {[%clk 0:02:57.3]} 10. e3
{[%clk 0:03:02.6]} 10... Qe7 {[%clk 0:02:56.8]} 11. Be2 {[%clk 0:03:02]} 11...
Nbd7 {[%clk 0:02:56.3]} 12. O-O {[%clk 0:03:02]} 12... Ne8 {[%clk 0:02:43.8]}
13. Nd2 {[%clk 0:02:51.9]} 13... Ne5 {[%clk 0:02:42.3]} 14. Bh2 {[%clk
0:02:52.2]} 14... f5 {[%clk 0:02:42.5]} 15. f4 {[%clk 0:02:43.8]} 15... Nf7
{[%clk 0:02:39.9]} 16. e4 {[%clk 0:02:44.1]} 16... Bd4+ {[%clk 0:02:32.5]} 17.
Kh1 {[%clk 0:02:44]} 17... Bxc3 {[%clk 0:02:29.3]} 18. bxc3 {[%clk 0:02:40.8]}
18... fxe4 {[%clk 0:02:29.3]} 19. Qc2 {[%clk 0:02:36.4]} 19... Nf6 {[%clk
0:02:27.7]} 20. Rae1 {[%clk 0:02:36]} 20... Re8 {[%clk 0:02:24.1]} 21. Bf3
{[%clk 0:02:30.8]} 21... Bf5 {[%clk 0:01:58.9]} 22. Qb2 {[%clk 0:02:27.9]} 22...
Qc7 {[%clk 0:01:50.1]} 23. Bd1 {[%clk 0:02:25]} 23... Rab8 {[%clk 0:01:43.9]}
24. c4 {[%clk 0:02:25.2]} 24... e3 {[%clk 0:01:33.9]} 25. Nf3 {[%clk 0:02:12]}
25... Ne4 {[%clk 0:01:32.7]} 26. Rxe3 {[%clk 0:02:03.4]} 26... Ng3+ {[%clk
0:01:30.7]} 27. Bxg3 {[%clk 0:02:03.8]} 27... Rxe3 {[%clk 0:01:31.2]} 28. Bf2
{[%clk 0:01:56.7]} 28... Ree8 {[%clk 0:01:26.5]} 29. Bh4 {[%clk 0:01:54.9]}
29... Qd7 {[%clk 0:01:17.8]} 30. Kh2 {[%clk 0:01:52.7]} 30... Bd3 {[%clk
0:01:11.3]} 31. Rf2 {[%clk 0:01:53]} 31... Bxc4 {[%clk 0:01:11.2]} 32. Bf6
{[%clk 0:01:53.1]} 32... Bxd5 {[%clk 0:01:06.1]} 33. Rd2 {[%clk 0:01:52.6]}
33... Bc6 {[%clk 0:00:59.7]} 34. Qa2 {[%clk 0:01:43.6]} 34... d5 {[%clk
0:00:49.2]} 35. Bb3 {[%clk 0:01:34.5]} 35... b5 {[%clk 0:00:47]} 36. Ba1 {[%clk
0:01:33]} 36... bxa4 {[%clk 0:00:33.7]} 37. Bxd5 {[%clk 0:01:20.3]} 37... Bxd5
{[%clk 0:00:32.8]} 38. Rxd5 {[%clk 0:01:20.7]} 38... Qe6 {[%clk 0:00:31]} 39.
Qd2 {[%clk 0:01:13.4]} 39... Rb3 {[%clk 0:00:17.5]} 40. Ne5 {[%clk 0:01:07.8]}
40... Nxe5 {[%clk 0:00:15.9]} 41. Rxe5 {[%clk 0:01:08.7]} 41... Qf7 {[%clk
0:00:15.6]} 42. Rxe8+ {[%clk 0:00:39.9]} 42... Qxe8 {[%clk 0:00:15.1]} 43. Qd5+
{[%clk 0:00:40.6]} 43... Kf8 {[%clk 0:00:12.4]} 44. Qd6+ {[%clk 0:00:39.3]}
44... Qe7 {[%clk 0:00:12.4]} 45. Qxa6 {[%clk 0:00:36.7]} 45... Qc7 {[%clk
0:00:10]} 46. Qxa4 {[%clk 0:00:34]} 46... Rb4 {[%clk 0:00:08.6]} 47. Qa8+ {[%clk
0:00:34.2]} 47... Kf7 {[%clk 0:00:09]} 48. Be5 {[%clk 0:00:34]} 48... Qb7 {[%clk
0:00:07.9]} 49. Qh8 {[%clk 0:00:33]} 49... Ke6 {[%clk 0:00:07.5]} 50. Qf6+
{[%clk 0:00:31.4]} 50... Kd5 {[%clk 0:00:08]} 51. Qd6+ {[%clk 0:00:31.5]} 51...
Kc4 {[%clk 0:00:08.2]} 52. Qd2 {[%clk 0:00:28.6]} 52... Qd5 {[%clk 0:00:06.9]}
53. Qa2+ {[%clk 0:00:24.5]} 53... Rb3 {[%clk 0:00:07.3]} 54. Qa4+ {[%clk
0:00:21]} 54... Rb4 {[%clk 0:00:06.7]} 55. Qa6+ {[%clk 0:00:20.2]} 55... Kb3
{[%clk 0:00:06.5]} 56. Qa1 {[%clk 0:00:18.2]} 56... Qd2 {[%clk 0:00:05.2]} 57.
Qb1+ {[%clk 0:00:17.5]} 57... Kc4 {[%clk 0:00:05.5]} 58. Qe4+ {[%clk 0:00:17.1]}
58... Kb5 {[%clk 0:00:05.8]} 59. Qb7+ {[%clk 0:00:17.3]} 59... Kc4 {[%clk
0:00:06.3]} 60. Qe4+ {[%clk 0:00:16.8]} 60... Kb5 {[%clk 0:00:06.6]} 61. Qb7+
{[%clk 0:00:17.1]} 61... Kc4 {[%clk 0:00:07]} 62. Qa6+ {[%clk 0:00:15.5]} 62...
Kb3 {[%clk 0:00:04.1]} 63. Qa1 {[%clk 0:00:12.5]} 63... c4 {[%clk 0:00:02.5]}
64. Qb1+ {[%clk 0:00:12.7]} 64... Ka4 {[%clk 0:00:02.8]} 65. Qa1+ {[%clk
0:00:13.1]} 65... Kb3 {[%clk 0:00:02.7]} 66. Qb1+ {[%clk 0:00:12.6]} 66... Ka4
{[%clk 0:00:03.2]} 67. Qa1+ {[%clk 0:00:12.7]} 67... Kb3 {[%clk 0:00:03.7]}
1/2-1/2

[Event "Late-Titled-Tuesday-Blitz-October-03-2023"]
[Site "Chess.com"]
[Date "2023.10.03"]
[Round "10"]
[White "WPWPWP-2015"]
[Black "Mikhail_Golubev"]
[Result "0-1"]
[WhiteElo "2516"]
[BlackElo "2615"]
[TimeControl "180+1"]
[EndTime "15:52:09 PDT"]
[Termination "Mikhail_Golubev won by checkmate"]

1. e4 {[%clk 0:03:00.9]} 1... c5 {[%clk 0:02:59.6]} 2. Nf3 {[%clk 0:02:59.9]}
2... d6 {[%clk 0:02:59.7]} 3. d4 {[%clk 0:02:57.5]} 3... Nf6 {[%clk 0:02:59.6]}
4. Nc3 {[%clk 0:02:56.9]} 4... cxd4 {[%clk 0:03:00]} 5. Nxd4 {[%clk 0:02:56.7]}
5... g6 {[%clk 0:03:00.6]} 6. Be2 {[%clk 0:02:55.5]} 6... Bg7 {[%clk 0:03:00.4]}
7. O-O {[%clk 0:02:55.6]} 7... O-O {[%clk 0:03:00.3]} 8. Nb3 {[%clk 0:02:54.8]}
8... Nc6 {[%clk 0:02:59.7]} 9. Be3 {[%clk 0:02:54.4]} 9... Ne5 {[%clk
0:02:58.8]} 10. h3 {[%clk 0:02:53.3]} 10... Be6 {[%clk 0:02:56.9]} 11. Nd4
{[%clk 0:02:50.8]} 11... Bc4 {[%clk 0:02:56]} 12. Bd3 {[%clk 0:02:50.3]} 12...
Nxd3 {[%clk 0:02:47.1]} 13. cxd3 {[%clk 0:02:50.1]} 13... Ba6 {[%clk 0:02:47]}
14. Qd2 {[%clk 0:02:49.7]} 14... e5 {[%clk 0:02:39.4]} 15. Nf3 {[%clk 0:02:49]}
15... d5 {[%clk 0:02:37.9]} 16. Bc5 {[%clk 0:02:48.4]} 16... Re8 {[%clk
0:02:21]} 17. Rfe1 {[%clk 0:02:47.9]} 17... Rc8 {[%clk 0:02:15.6]} 18. Ba3
{[%clk 0:02:45.3]} 18... d4 {[%clk 0:01:58.4]} 19. Ne2 {[%clk 0:02:43.6]} 19...
Qb6 {[%clk 0:01:40.2]} 20. Rec1 {[%clk 0:02:42]} 20... Qb5 {[%clk 0:01:37.4]}
21. Ne1 {[%clk 0:02:38.1]} 21... Nxe4 {[%clk 0:01:33.8]} 22. Qb4 {[%clk
0:02:11.2]} 22... Qxb4 {[%clk 0:01:23.1]} 23. Bxb4 {[%clk 0:02:10.9]} 23... Nf6
{[%clk 0:01:21.9]} 24. Bd2 {[%clk 0:01:53.2]} 24... Nd5 {[%clk 0:01:19.4]} 25.
f3 {[%clk 0:01:51.1]} 25... f5 {[%clk 0:01:14.8]} 26. Kf2 {[%clk 0:01:45.8]}
26... Kf7 {[%clk 0:01:09.3]} 27. a3 {[%clk 0:01:41.4]} 27... b6 {[%clk
0:01:03.1]} 28. g4 {[%clk 0:01:33.2]} 28... f4 {[%clk 0:01:00.9]} 29. h4 {[%clk
0:01:19.4]} 29... Ne3 {[%clk 0:00:56.4]} 30. Ng1 {[%clk 0:01:06.1]} 30... h6
{[%clk 0:00:51.7]} 31. Nh3 {[%clk 0:01:04.6]} 31... Bf6 {[%clk 0:00:47.7]} 32.
g5 {[%clk 0:00:38.3]} 32... Be7 {[%clk 0:00:43]} 33. Rxc8 {[%clk 0:00:35.3]}
33... Rxc8 {[%clk 0:00:42]} 34. Rc1 {[%clk 0:00:34.7]} 34... Rxc1 {[%clk
0:00:41.3]} 35. Bxc1 {[%clk 0:00:34.3]} 35... Nf5 {[%clk 0:00:39.3]} 36. gxh6
{[%clk 0:00:26.7]} 36... Bxh4+ {[%clk 0:00:37.8]} 37. Ke2 {[%clk 0:00:25.7]}
37... Nxh6 {[%clk 0:00:35.5]} 38. Ng2 {[%clk 0:00:22.3]} 38... g5 {[%clk
0:00:28.4]} 39. Nxh4 {[%clk 0:00:18.5]} 39... gxh4 {[%clk 0:00:28.8]} 40. Bd2
{[%clk 0:00:18.4]} 40... Nf5 {[%clk 0:00:28.5]} 41. Be1 {[%clk 0:00:18.5]} 41...
Kg6 {[%clk 0:00:27.2]} 42. Bf2 {[%clk 0:00:15.6]} 42... Kh5 {[%clk 0:00:26.7]}
43. Kd2 {[%clk 0:00:15]} 43... Ne3 {[%clk 0:00:26.1]} 44. Ng1 {[%clk 0:00:13.5]}
44... Bc8 {[%clk 0:00:24.9]} 45. Ke2 {[%clk 0:00:13.1]} 45... h3 {[%clk
0:00:23.4]} 46. Nxh3 {[%clk 0:00:09.5]} 46... Bxh3 {[%clk 0:00:23.2]} 47. Be1
{[%clk 0:00:09.9]} 47... Bf1+ {[%clk 0:00:21]} 48. Kd2 {[%clk 0:00:09.9]} 48...
Kg5 {[%clk 0:00:19.4]} 49. a4 {[%clk 0:00:09.2]} 49... Nd5 {[%clk 0:00:14.6]}
50. Kc2 {[%clk 0:00:04]} 50... a5 {[%clk 0:00:13.8]} 51. b3 {[%clk 0:00:02.5]}
51... Nb4+ {[%clk 0:00:13.6]} 52. Kd2 {[%clk 0:00:02.6]} 52... Nxd3 {[%clk
0:00:12.1]} 53. Bf2 {[%clk 0:00:02.2]} 53... Nc5 {[%clk 0:00:11.2]} 54. Bg1
{[%clk 0:00:02]} 54... Bg2 {[%clk 0:00:11]} 55. Kc2 {[%clk 0:00:02]} 55... Bxf3
{[%clk 0:00:11.2]} 56. Bf2 {[%clk 0:00:02.6]} 56... Be4+ {[%clk 0:00:11.3]} 57.
Kd2 {[%clk 0:00:02.6]} 57... Nxb3+ {[%clk 0:00:11.6]} 58. Kd1 {[%clk 0:00:02.7]}
58... Nc5 {[%clk 0:00:12.5]} 59. Be1 {[%clk 0:00:02.7]} 59... Nxa4 {[%clk
0:00:12.4]} 60. Ke2 {[%clk 0:00:03.2]} 60... Nc3+ {[%clk 0:00:12.3]} 61. Kd2
{[%clk 0:00:03.5]} 61... b5 {[%clk 0:00:12.5]} 62. Kc1 {[%clk 0:00:03.2]} 62...
b4 {[%clk 0:00:12.9]} 63. Kd2 {[%clk 0:00:03.2]} 63... a4 {[%clk 0:00:13.1]} 64.
Bf2 {[%clk 0:00:03.5]} 64... a3 {[%clk 0:00:13.1]} 65. Be1 {[%clk 0:00:03.5]}
65... a2 {[%clk 0:00:13]} 66. Bf2 {[%clk 0:00:03.7]} 66... a1=Q {[%clk 0:00:13]}
67. Bh4+ {[%clk 0:00:04.2]} 67... Kg4 {[%clk 0:00:12]} 68. Bg5 {[%clk
0:00:04.5]} 68... Qd1# {[%clk 0:00:11.8]} 0-1